[Event "Marshall CC FIDE Premier August 2024"]
[Site "New York"]
[Date "2024.08.05"]
[Round "5.4"]
[White "Nasta, Kiren Vivek"]
[Black "Safranek, William"]
[Result "0-1"]
[ECO "C63"]
[WhiteElo "2148"]
[BlackElo "2111"]
[Annotator "RC"]
[PlyCount "112"]
[EventDate "2024.08.02"]
[EventType "swiss"]
[EventCountry "USA"]
[SourceTitle "playchess.com"]
[Source "ChessBase"]
[SourceQuality "1"]
[TimeControl "5400+30"]

1. e4 {[%emt 0:00:02]} e5 {[%emt 0:00:02]} 2. Nf3 {[%emt 0:00:02]} Nc6 {[%emt 0:00:04]} 3. Bb5 {[%emt 0:00:04]} f5 {[%emt 0:00:03]} 4. Nc3 {[%emt 0:00:02]} fxe4 {[%emt 0:00:03]} 5. Nxe4 {[%emt 0:00:04]} Nf6 {[%emt 0:00:04]} 6. Nxf6+ {[%emt 0:00:27]} Qxf6 {[%emt 0:00:06]} 7. Qe2 {[%emt 0:00:04]} Be7 {[%emt 0:00:03]} 8. Bxc6 {[%emt 0:00:08]} bxc6 {[%emt 0:00:03]} 9. Nxe5 {[%emt 0:00:27]} Bb7 {[%emt 0:00:03]} 10. d4 {[%emt 0:06:45]} O-O-O {[%emt 0:00:07]} 11. Qf3 {[%emt 0:06:58]} c5 {[%emt 0:04:02]} 12. Qxf6 {[%emt 0:00:40]} Bxf6 {[%emt 0:00:03]} 13. O-O {[%emt 0:01:06]} Rde8 {[%emt 0:00:06]} 14. c3 {[%emt 0:02:34]} cxd4 {[%emt 0:00:05]} 15. cxd4 {[%emt 0:00:30]} d6 {[%emt 0:02:47]} 16. Ng4 {[%emt 0:02:02]} Bxd4 {[%emt 0:00:55]} 17. Be3 {[%emt 0:02:39]} Re4 {[%emt 0:00:52]} 18. h3 {[%emt 0:01:26]} Bxb2 {[%emt 0:11:37]} 19. Rab1 {[%emt 0:02:05]} Bd4 {[%emt 0:01:23]} 20. Rb3 {[%emt 0:01:15]} Bb6 {[%emt 0:09:36]} 21. Rc1 {[%emt 0:02:53]} Rhe8 {[%emt 0:00:47]} 22. Rbc3 {[%emt 0:06:32]} h5 {[%emt 0:02:06]} 23. Bd4 {[%emt 1:03:15]} Bc5 24. Bxc5 {[%emt 0:00:00]} Re2 {[%emt 1:07:33]} 25. Bb6 Re1+ {[%emt 0:00:00]} 26. Rxe1 {[%emt 0:00:00]} Re7 {[%emt 0:01:00]} 27. Re2 Rxe2 {[%emt 0:00:00]} 28. Kh2 {[%emt 0:00:00]} Re1 {[%emt 0:00:00]} 29. Ne3 axb6 {[%emt 0:00:00]} 30. Nf5 {[%emt 0:00:00]} Kd7 {[%emt 0:00:00]} 31. Nh4 {[%emt 0:00:00]} g5 {[%emt 0:00:00]} 32. Ng6 {[%emt 0:00:00]} h4 {[%emt 0:00:00]} 33. Nf8+ {[%emt 0:00:00]} Kd8 {[%emt 0:00:00]} 34. Nh7 {[%emt 0:00:00]} Re5 {[%emt 0:00:00]} 35. Rc4 {[%emt 0:00:00]} Rf5 {[%emt 0:00:00]} 36. f3 {[%emt 0:00:00]} Rf4 {[%emt 0:00:00]} 37. Rxf4 {[%emt 0:00:00]} gxf4 {[%emt 0:00:00]} 38. Nf8 {[%emt 0:00:00]} Bd5 {[%emt 0:00:00]} 39. Ng6 {[%emt 0:00:00]} Bxa2 {[%emt 0:00:00]} 40. Nxf4 {[%emt 0:00:00]} Bc4 {[%emt 0:00:00]} 41. Kg1 {[%emt 0:00:00]} b5 {[%emt 0:00:00]} 42. Kf2 {[%emt 0:00:00]} b4 {[%emt 0:00:00]} 43. Ke3 {[%emt 0:00:00]} Bf1 {[%emt 0:00:00]} 44. Kd2 {[%emt 0:00:00]} c5 {[%emt 0:00:00]} 45. Kc2 {[%emt 0:00:00]} Kd7 {[%emt 0:00:00]} 46. Kb3 {[%emt 0:00:00]} Kc6 {[%emt 0:00:00]} 47. Ng6 {[%emt 0:00:00]} Bxg2 {[%emt 0:00:00]} 48. Nxh4 {[%emt 0:00:00]} Bxh3 {[%emt 0:00:00]} 49. f4 {[%emt 0:00:00]} Kd5 {[%emt 0:00:00]} 50. Nf3 {[%emt 0:00:00]} Bf5 {[%emt 0:00:00]} 51. Nd2 {[%emt 0:00:00]} Kd4 {[%emt 0:00:00]} 52. Kb2 {[%emt 0:00:00]} c4 {[%emt 0:00:00]} 53. Nf1 {[%emt 0:00:00]} c3+ {[%emt 0:00:05]} 54. Kb3 {[%emt 0:00:00]} Be6+ {[%emt 0:00:04]} 55. Kxb4 {[%emt 0:00:00]} c2 {[%emt 0:00:06]} 56. Ng3 {[%emt 0:00:00]} Kd3 {[%emt 0:00:05]} 0-1

[Event "Marshall CC FIDE Premier August 2024"]
[Site "New York"]
[Date "2024.08.05"]
[Round "5.5"]
[White "Nkululeko, Nkosi"]
[Black "Zhu, Linxi"]
[Result "0-1"]
[ECO "D78"]
[WhiteElo "2001"]
[BlackElo "2129"]
[Annotator "RC"]
[PlyCount "108"]
[EventDate "2024.08.02"]
[EventType "swiss"]
[EventCountry "USA"]
[SourceTitle "playchess.com"]
[Source "ChessBase"]
[SourceQuality "1"]
[TimeControl "5400+30"]

1. Nf3 {[%emt 0:10:30]} Nf6 {[%emt 0:00:07]} 2. g3 {[%emt 0:00:03]} g6 {[%emt 0:00:06]} 3. Bg2 {[%emt 0:00:02]} Bg7 {[%emt 0:00:06]} 4. O-O {[%emt 0:00:06]} O-O {[%emt 0:00:06]} 5. c4 {[%emt 0:00:02]} c6 {[%emt 0:00:36]} 6. d4 {[%emt 0:00:44]} d5 {[%emt 0:00:06]} 7. Nc3 {[%emt 0:00:22]} Bf5 {[%emt 0:00:46]} 8. Nh4 {[%emt 0:01:51]} Be6 {[%emt 0:00:20]} 9. Re1 {[%emt 0:04:58]} Nbd7 {[%emt 0:06:22]} 10. h3 {[%emt 0:07:50]} Nb6 {[%emt 0:08:04]} 11. c5 {[%emt 0:04:40]} Nbd7 {[%emt 0:00:59]} 12. f4 {[%emt 0:04:44]} Ne4 {[%emt 0:05:42]} 13. Kh2 {[%emt 0:08:15]} Ndf6 {[%emt 0:09:21]} 14. Qc2 {[%emt 0:01:18]} Qd7 {[%emt 0:03:56]} 15. e3 {[%emt 0:03:24]} Bf5 {[%emt 0:07:14]} 16. Nxf5 {[%emt 0:05:48]} gxf5 {[%emt 0:00:12]} 17. Ne2 {[%emt 0:01:15]} Kh8 {[%emt 0:01:11]} 18. Bf3 {[%emt 0:02:16]} Rg8 {[%emt 0:00:24]} 19. Bd2 {[%emt 0:00:35]} Bf8 {[%emt 0:07:15]} 20. Rg1 {[%emt 0:02:20]} Rg6 {[%emt 0:00:29]} 21. Rg2 {[%emt 0:01:55]} Rh6 {[%emt 0:00:28]} 22. Rh1 {[%emt 0:01:06]} e6 {[%emt 0:01:23]} 23. Kg1 {[%emt 0:00:26]} Be7 {[%emt 0:00:12]} 24. g4 {[%emt 0:01:26]} Nxd2 {[%emt 0:04:38]} 25. Qxd2 {[%emt 0:00:08]} Ne4 {[%emt 0:00:05]} 26. Qe1 {[%emt 0:07:33]} Bh4 {[%emt 0:01:41]} 27. Qc1 {[%emt 0:04:06]} Rg8 {[%emt 0:02:36]} 28. Kf1 {[%emt 0:11:44]} Rhg6 {[%emt 0:02:17]} 29. Bxe4 {[%emt 0:01:35]} fxe4 {[%emt 0:03:08]} 30. Ng3 {[%emt 0:00:53]} f5 {[%emt 0:01:09]} 31. g5 {[%emt 0:04:17]} h6 {[%emt 0:02:30]} 32. Qd1 {[%emt 0:04:51]} hxg5 {[%emt 0:00:06]} 33. Qh5+ {[%emt 0:01:20]} Qh7 {[%emt 0:00:06]} 34. Qxh7+ {[%emt 0:00:17]} Kxh7 {[%emt 0:00:05]} 35. Ne2 {[%emt 0:00:23]} gxf4 {[%emt 0:00:52]} 36. Rxg6 {[%emt 0:00:02]} Rxg6 {[%emt 0:00:05]} 37. Nxf4 {[%emt 0:00:31]} Rg3 {[%emt 0:00:16]} 38. Ke2 {[%emt 0:03:46]} Bg5 {[%emt 0:00:19]} 39. Rb1 {[%emt 0:01:50]} Bxf4 {[%emt 0:00:04]} 40. exf4 {[%emt 0:00:01]} Rxh3 {[%emt 0:35:08]} 41. b4 {[%emt 0:00:38]} Rd3 {[%emt 0:00:00]} 42. b5 {[%emt 0:00:17]} Rxd4 {[%emt 0:00:00]} 43. bxc6 {[%emt 0:00:03]} bxc6 {[%emt 0:00:00]} 44. Rb7+ {[%emt 0:00:03]} Kg6 {[%emt 0:00:00]} 45. Rc7 {[%emt 0:00:28]} Rc4 {[%emt 0:00:00]} 46. Rxc6 {[%emt 0:00:07]} Kf6 {[%emt 0:00:00]} 47. Rc8 {[%emt 0:00:26]} d4 {[%emt 0:00:00]} 48. c6 {[%emt 0:00:07]} Rc2+ {[%emt 0:00:00]} 49. Kd1 {[%emt 0:00:10]} d3 {[%emt 0:00:00]} 50. c7 {[%emt 0:00:12]} Ke7 {[%emt 0:00:00]} 51. Rd8 {[%emt 0:01:14]} Rxc7 {[%emt 0:00:00]} 52. Rh8 {[%emt 0:01:35]} e3 {[%emt 0:00:00]} 53. a4 {[%emt 0:00:20]} e2+ {[%emt 0:00:00]} 54. Kd2 {[%emt 0:00:03]} Rc1 {[%emt 0:00:00]} 0-1